bitfinex-derivatives/quotes_ETHF0:USTF0_20241231
["timestamp","ask_amount","ask_price","bid_price","bid_amount"]
[1735627203445,2.56033271,3350.4,3350.3,4.66932344]
[1735627205048,0.29892,3350.2,3350.1,4.0718]
[1735627205243,0.29892,3350.2,3350.1,0.864]
[1735627205443,2.26143271,3350.4,3349.7,3.2078]
[1735627205652,0.29895,3349.8,3349.7,3.2078]
[1735627206050,0.29464067,3349.8,3349.7,3.2078]
[1735627209449,2.26143271,3350.0,3349.4,0.45]
[1735627209650,2.56041271,3349.5,3349.4,0.45]
[1735627209848,0.29898,3349.5,3349.4,0.45]
[1735627210057,2.26143271,3349.8,3349.4,0.45]
[1735627210255,2.56041271,3349.5,3349.4,0.45]
[1735627211059,2.56041271,3349.5,3349.4,41.25]
[1735627211268,2.26143271,3349.5,3349.4,41.25]
[1735627211465,2.56041271,3349.5,3349.4,41.25]
[1735627211762,0.29898,3349.6,3349.4,41.25]
[1735627212068,0.29898,3349.5,3349.4,41.25]
[1735627213458,2.26143271,3349.6,3349.3,0.4349]
[1735627213459,5.46923271,3349.6,3349.3,0.4349]
[1735627213665,0.29902,3349.0,3348.9,0.4375]
[1735627213865,2.56045271,3349.0,3348.9,41.6575]
[1735627215260,2.26143271,3349.0,3348.5,0.299]
[1735627215574,2.26143271,3348.6,3348.2,0.8881]
[1735627215863,2.56052271,3348.3,3348.2,0.8881]
[1735627216271,2.56052271,3348.3,3348.2,41.6881]
[1735627216669,2.56052271,3348.3,3348.2,42.15566274]
[1735627216867,2.26143271,3348.3,3348.2,42.15566274]
[1735627217065,2.26143271,3348.3,3348.2,41.26756274]
[1735627217370,2.56052271,3348.3,3348.2,0.46756274]
[1735627217772,5.76832271,3348.3,3348.2,0.46756274]
[1735627217966,7.41396271,3348.3,3347.0,0.4348]
[1735627218173,0.29918,3347.3,3347.2,3.2078]
[1735627218370,0.29918,3347.3,3347.2,3.63552749]
[1735627218570,2.26143271,3348.1,3347.2,4.00964757]
[1735627218873,2.26143271,3348.1,3347.3,0.80184757]
[1735627219067,2.26143271,3348.1,3347.4,0.44012317]
[1735627219268,2.26143271,3348.1,3347.5,0.44012317]
[1735627219569,0.2991,3348.2,3347.7,3.2078]
[1735627219778,2.26143271,3348.6,3347.8,1.68070769]
[1735627219974,0.29911,3348.1,3347.9,0.44012317]
[1735627220271,0.29911,3348.1,3348.0,0.44012317]
[1735627220471,2.26143271,3348.6,3348.1,0.299]
[1735627220667,0.4445,3349.3,3348.3,5.76823271]
[1735627220862,0.29907,3348.5,3348.4,0.87319855]
[1735627221069,0.74749,3349.4,3348.4,42.04719646]
[1735627221271,0.299,3349.3,3348.9,2.26143271]
[1735627221471,0.29898,3349.5,3349.0,0.8676]
[1735627221667,3.2078,3349.6,3349.1,0.43994639]
[1735627221668,0.299,3349.4,3349.1,0.43994639]
[1735627221862,0.29899,3349.5,3349.2,0.81387741]
[1735627222064,3.2078,3349.6,3349.3,0.81387741]
[1735627222265,3.2078,3350.5,3349.4,0.81387741]
[1735627222465,0.29895,3349.9,3349.7,3.2078]
[1735627222668,0.29894,3349.9,3349.8,0.81381447]
[1735627222974,0.29894,3350.0,3349.8,0.68739447]
[1735627223271,0.29893,3350.1,3349.9,41.2483]
[1735627223669,3.2078,3350.5,3349.9,41.2483]
[1735627223865,0.29894,3350.0,3349.9,41.2483]
[1735627224071,0.29893,3350.1,3349.9,41.2483]
[1735627224262,3.2078,3350.5,3349.9,41.2483]
[1735627224668,0.29891,3350.3,3349.9,41.2483]
[1735627224968,5.46923271,3350.5,3349.9,41.2483]
[1735627225573,0.29894,3350.0,3349.9,41.2483]
[1735627226071,3.2078,3350.5,3349.9,41.2483]
[1735627226276,2.26143271,3350.7,3350.2,3.2078]
[1735627226474,2.26143271,3350.4,3350.2,3.2078]
[1735627226673,0.29891,3350.3,3350.2,3.2078]
[1735627227775,0.29894,3350.0,3349.9,41.2483]
[1735627228171,0.29894,3350.0,3349.9,0.4483]
[1735627230277,0.29894,3350.0,3349.9,0.91562933]
[1735627231783,0.29894,3350.0,3349.9,41.71562933]
[1735627232276,0.29894,3350.0,3349.9,1.17026125]
[1735627232482,0.29894,3350.0,3349.9,0.46732933]
[1735627235080,0.29894,3350.0,3349.9,0.90610179]
[1735627235476,2.56036271,3350.1,3349.9,0.90610179]
[1735627235672,2.56036271,3350.1,3350.0,0.43877246]
[1735627235871,2.26143271,3350.1,3349.9,0.46732933]
[1735627236070,2.26143271,3350.1,3349.6,3.2078]
[1735627236071,0.29896,3349.7,3349.6,3.2078]
[1735627236382,0.29896,3349.7,3349.6,4.02051806]
[1735627236676,2.26143271,3350.1,3349.6,4.02051943]
[1735627236876,2.26143271,3350.1,3349.7,0.81271943]
[1735627237069,2.26143271,3350.1,3349.6,3.67517303]
[1735627237070,2.26143271,3350.1,3349.8,0.4387983]
[1735627237273,2.26143271,3350.1,3349.9,0.46737303]
[1735627237274,0.29894,3350.0,3349.9,0.46737303]
[1735627237473,0.29894,3350.0,3349.9,0.90617434]
[1735627238483,2.26143271,3350.1,3349.9,0.90617434]
[1735627238684,0.29894,3350.0,3349.9,0.46737303]
[1735627238984,0.29894,3350.0,3349.9,0.90607165]
[1735627239583,0.29894,3350.0,3349.9,0.43869885]
[1735627239779,0.29894,3350.0,3349.9,0.90606545]
[1735627240385,0.29894,3350.0,3349.9,0.4673666]
[1735627240583,0.72144,3350.0,3349.9,0.4673666]
[1735627243888,0.29899,3349.4,3349.2,44.0078]
[1735627244187,0.29899,3349.4,3349.3,1.28002349]
[1735627244490,2.26143271,3349.7,3349.3,1.98191222]
[1735627244686,2.26143271,3349.7,3349.1,0.9028]
[1735627244687,0.29898,3349.5,3349.4,0.90609038]
[1735627244885,2.56041271,3349.5,3349.4,0.46741645]
[1735627245492,3.00611271,3349.5,3349.4,0.46741645]
[1735627245692,0.29902,3349.0,3348.9,0.299]
[1735627245886,0.29902,3349.0,3348.9,0.73602037]
[1735627246079,0.29902,3349.0,3348.9,1.11003047]
[1735627246280,2.26143271,3349.1,3348.9,1.11003987]
[1735627246480,0.29902,3349.0,3348.9,0.299]
[1735627246786,0.29902,3349.0,3348.9,1.11002543]
[1735627246979,0.29902,3349.0,3348.9,1.85803996]
[1735627247386,0.29902,3349.0,3348.9,1.04701453]
[1735627247591,5.46923271,3349.1,3348.9,0.43716997]
[1735627247890,5.46923271,3349.1,3348.6,0.299]
[1735627247891,0.29905,3348.7,3348.6,41.099]
[1735627248092,2.56048271,3348.7,3348.6,41.91019497]
[1735627248288,5.76828271,3348.7,3348.6,1.85826885]
[1735627248491,3.50685,3348.7,3348.6,1.48459712]
[1735627248688,4.80825,3348.7,3348.6,1.04707388]
[1735627248992,4.80825,3348.7,3348.6,1.49713401]
[1735627250385,4.80825,3348.7,3348.6,0.74906013]
[1735627250990,5.04933948,3348.7,3348.6,0.74906013]
[1735627251587,5.04933948,3348.7,3348.0,40.8]
[1735627251588,0.2991,3348.2,3348.1,0.299]
[1735627251788,2.56053271,3348.2,3348.1,1.12298033]
[1735627251989,2.56053271,3348.2,3348.1,1.87114022]
[1735627254997,2.56053271,3348.2,3348.1,1.86831073]
[1735627255192,2.56053271,3348.2,3348.1,1.4942328]
[1735627255693,2.26143271,3348.2,3348.1,1.4942328]
[1735627255891,2.26143271,3348.5,3348.1,1.86831041]
[1735627256097,2.26143271,3348.5,3348.3,0.299]
[1735627256389,3.2078,3348.7,3348.4,0.87687291]
[1735627256595,3.50686,3348.7,3348.5,0.44707291]
[1735627256898,3.2078,3348.7,3348.6,1.4942328]
[1735627257089,3.50685,3348.7,3348.6,1.4942328]
[1735627257492,2.26143271,3348.8,3348.6,1.4942328]
[1735627257685,2.26143271,3349.1,3348.7,0.89377291]
[1735627257890,2.26143271,3349.1,3348.8,2.97169107]
[1735627258094,2.26143271,3349.1,3348.9,0.82104855]
[1735627258294,2.26143271,3349.1,3349.0,0.44707291]
[1735627258498,2.26143271,3349.1,3349.0,0.86657291]
[1735627258796,2.26143271,3349.1,3349.0,3.01719986]
[1735627258987,2.26143271,3349.1,3349.0,2.08222182]
[1735627259703,2.26143271,3349.1,3349.0,3.01717803]
[1735627260493,2.56045271,3349.1,3349.0,3.01717803]
[1735627261389,2.56045271,3349.1,3349.0,2.08222182]
[1735627261587,2.56045271,3349.1,3349.0,1.66272182]
[1735627261789,2.56045271,3349.1,3349.0,1.21564891]
[1735627264194,3.44345271,3349.1,3349.0,1.21564891]
[1735627264599,3.44345271,3349.1,3349.0,0.46748902]
[1735627265187,3.44345271,3349.1,3348.5,0.299]
[1735627265188,0.29906,3348.6,3348.5,0.299]
[1735627265397,5.76829271,3348.6,3348.5,1.50696745]
[1735627266095,5.76829271,3348.6,3348.5,1.50700527]
[1735627268995,5.76829271,3348.6,3348.5,1.04713148]
[1735627269195,5.76829271,3348.6,3348.5,1.50743318]
[1735627271597,5.76829271,3348.6,3348.5,0.58605218]
[1735627271794,0.2991,3348.2,3348.1,0.299]
[1735627272194,0.2991,3348.2,3348.1,1.23424854]
[1735627272195,2.56053271,3348.2,3348.1,1.23424854]
[1735627273197,2.56053271,3348.2,3348.1,2.35153314]
[1735627274409,2.56053271,3348.2,3348.1,2.35191932]
[1735627274608,2.26143271,3348.2,3348.1,2.35191932]
[1735627274800,2.26143271,3348.2,3348.1,2.81590436]
[1735627275000,0.29909,3348.3,3348.1,2.81590436]
[1735627275308,3.2078,3348.6,3348.3,0.299]
[1735627275499,5.46923271,3349.1,3348.6,0.299]
[1735627275697,5.46923271,3349.1,3348.7,43.31878356]
[1735627275897,0.29904,3348.9,3348.8,1.11763328]
[1735627276100,0.29904,3348.9,3348.8,2.05288182]
[1735627277203,0.29903,3349.0,3348.8,2.05288182]
[1735627277404,0.29903,3349.0,3348.9,1.11763328]
[1735627277604,0.29903,3349.0,3348.9,2.52039492]
[1735627278309,0.29903,3349.0,3348.9,2.51601218]
[1735627279903,1.197,3349.5,3348.9,2.51601218]
[1735627279904,3.2078,3349.5,3348.9,2.51601218]
[1735627280104,2.26143271,3350.1,3349.4,3.2078]
[1735627280406,2.26143271,3350.1,3349.5,1.53335054]
[1735627280407,0.29897,3349.7,3349.5,1.53335054]
[1735627280708,0.29897,3349.7,3349.6,1.11325054]
[1735627280908,0.29897,3349.7,3349.6,2.51601218]
[1735627281210,0.29897,3349.7,3349.6,2.51510615]
[1735627281403,0.29896,3349.8,3349.6,2.51510615]
[1735627281703,0.29896,3349.8,3349.7,0.37400783]
[1735627281908,0.29896,3349.8,3349.7,42.950578]
[1735627282308,2.26143271,3350.1,3349.7,42.950578]
[1735627282506,3.2078,3350.4,3349.7,42.950578]
[1735627282507,0.29894,3349.9,3349.8,2.150578]
[1735627282810,2.56037271,3349.9,3349.8,2.150578]
[1735627283806,0.29893,3350.1,3349.8,2.61148863]
[1735627284004,2.26143271,3350.2,3349.9,0.46091063]
[1735627284204,0.29893,3350.1,3350.0,0.46091063]
[1735627284707,0.29893,3350.1,3350.0,1.67624009]
[1735627284908,2.26143271,3350.2,3350.0,1.67624009]
[1735627285107,2.56035271,3350.2,3350.1,0.46073475]
[1735627285405,2.56035271,3350.2,3350.1,1.21532946]
[1735627285807,2.26143271,3350.2,3350.1,1.21532946]
[1735627286009,3.5067,3350.4,3350.1,1.67583592]
[1735627286207,0.29891,3350.3,3350.2,0.4384]
[1735627286411,0.29891,3350.3,3350.2,2.09342946]
[1735627286610,3.5067,3350.4,3350.2,2.09342946]
[1735627286915,3.5067,3350.4,3350.3,1.21532946]
[1735627288413,3.2078,3350.4,3350.3,1.21532946]
[1735627289716,3.2078,3350.4,3350.3,0.4675131]
[1735627290016,3.5067,3350.4,3350.3,0.4675131]
[1735627297718,3.2078,3350.4,3350.3,0.4675131]
[1735627297917,0.29889,3350.5,3350.3,3.6753131]
[1735627298117,0.29889,3350.6,3350.3,3.6753131]
[1735627298318,0.29889,3350.5,3350.4,0.4675131]
[1735627299220,0.4372,3350.7,3350.4,0.4675131]
[1735627299409,2.26143271,3350.9,3350.5,0.4675131]
[1735627299614,0.29889,3350.6,3350.5,0.4675131]
[1735627299819,2.26143271,3350.9,3350.3,3.2078]
[1735627299820,0.29889,3350.5,3350.3,3.2078]
[1735627300221,0.29889,3350.6,3350.4,1.21487191]
[1735627300622,3.2078,3351.0,3350.5,0.46725843]
[1735627300818,0.74694,3351.9,3350.9,3.2078]
[1735627300819,3.2078,3351.4,3350.9,3.2078]
[1735627301024,0.29883,3351.2,3351.0,41.6456]
[1735627301222,0.29883,3351.3,3351.0,42.11285843]
[1735627301425,0.29883,3351.2,3351.1,0.46725843]
[1735627301621,2.26143271,3351.5,3351.1,0.46725843]
[1735627301829,0.29881,3351.4,3351.3,3.2078]
[1735627302118,0.29881,3351.4,3351.3,3.67505843]
[1735627302319,0.29881,3351.4,3350.3,0.46590174]
[1735627302320,0.29888,3350.6,3350.3,0.46590174]
[1735627302625,2.26143271,3350.8,3350.4,3.95540112]
[1735627302836,0.8526,3350.7,3350.4,3.95540112]
[1735627303026,0.8526,3350.7,3350.5,0.74760112]
[1735627303324,0.8526,3350.7,3350.4,3.2078]
[1735627303325,0.29888,3350.6,3350.4,3.2078]
[1735627303526,0.29889,3350.5,3350.4,3.2078]
[1735627303724,0.29889,3350.5,3350.4,3.65472148]
[1735627303919,0.29889,3350.5,3350.4,3.2078]
[1735627304228,0.8526,3350.7,3350.4,4.40234867]
[1735627304424,0.29887,3350.8,3350.4,4.25431717]
[1735627304622,0.29887,3350.8,3350.5,0.74573428]
[1735627304921,3.57713271,3351.1,3350.6,1.19447145]
[1735627305126,3.2078,3352.4,3351.0,3.2078]
[1735627305324,3.12043271,3351.9,3351.4,3.2078]
[1735627305623,0.2988,3351.5,3351.4,3.2078]
[1735627309131,2.26143271,3351.6,3350.9,3.2078]
[1735627309323,0.29885,3351.1,3351.0,0.74752122]
[1735627309721,0.29885,3351.0,3350.9,3.2078]
[1735627310929,0.29889,3350.6,3350.5,3.2078]
[1735627311331,0.29888,3350.7,3350.5,3.64759603]
[1735627311635,0.29888,3350.7,3350.6,0.74761608]
[1735627313836,2.26143271,3350.8,3350.1,3.2078]
[1735627314037,0.29892,3350.2,3350.1,3.2078]
[1735627314237,0.29892,3350.3,3350.2,0.74770503]
[1735627314539,0.29892,3350.3,3350.2,1.65518545]
[1735627314735,0.29892,3350.3,3350.2,0.90748042]
[1735627315933,1.1459,3350.4,3350.2,0.90748042]
[1735627316234,1.1459,3350.4,3350.3,0.90748042]
[1735627318236,1.1459,3350.4,3350.3,0.90760624]
[1735627319737,0.2989,3350.4,3350.3,0.46731305]
[1735627319937,2.26143271,3350.5,3350.3,0.90765094]
[1735627319938,0.2989,3350.5,3350.3,0.90765094]
[1735627320240,0.2989,3350.5,3350.4,0.90761954]
[1735627320640,2.68453271,3350.8,3350.4,0.46731305]
[1735627320942,0.29888,3350.7,3350.4,0.46731305]
[1735627321145,0.29888,3350.7,3350.5,0.46731305]
[1735627321339,0.29888,3350.7,3350.6,0.46731305]
[1735627322335,2.98340271,3350.8,3350.6,0.46731305]
[1735627322534,0.29887,3350.7,3350.6,0.46731305]
[1735627323542,2.68453271,3350.8,3350.1,3.2078]
[1735627323543,0.29892,3350.2,3350.1,3.2078]
[1735627323742,2.26143271,3350.5,3350.1,4.11559357]
[1735627323939,0.4277,3350.4,3350.1,3.67513275]
[1735627324145,0.29892,3350.2,3350.1,3.2078]
[1735627324343,0.29892,3350.2,3350.1,4.11561342]
[1735627324741,0.29892,3350.2,3350.1,0.4673348]
[1735627324742,2.56035271,3350.2,3350.1,0.4673348]
[1735627326348,0.29892,3350.2,3350.1,0.4673348]
[1735627326847,2.56035271,3350.2,3350.1,0.4673348]
[1735627327343,0.29894,3349.9,3349.8,4.68303097]
[1735627327541,2.56037271,3349.9,3349.8,5.15040947]
[1735627327943,2.56037271,3349.9,3349.8,0.4673785]
[1735627328244,2.56037271,3349.9,3349.8,1.21518758]
[1735627329246,0.29894,3349.9,3349.8,0.4673785]
[1735627330243,0.29894,3349.9,3349.2,3.2078]
[1735627330244,4.954,3349.9,3349.2,3.2078]
[1735627330545,2.56043271,3349.3,3349.2,3.2078]
[1735627332845,0.29903,3349.0,3348.7,3.6558]
[1735627333046,0.29903,3349.0,3348.8,1.18738305]
[1735627333251,0.29903,3349.0,3348.9,0.74796913]
[1735627334354,0.29902,3349.1,3348.9,0.74796913]
[1735627334549,0.29901,3349.2,3348.9,0.74796913]
[1735627334750,0.29902,3349.1,3349.0,1.16346913]
[1735627335648,0.29902,3349.1,3349.0,0.4155]
[1735627336245,0.29902,3349.1,3349.0,1.16346121]
[1735627342357,0.29902,3349.1,3349.0,1.63092368]
[1735627344353,0.29902,3349.1,3349.0,0.4155]
[1735627344554,0.29902,3349.1,3349.0,1.63089805]
[1735627344951,0.29902,3349.1,3349.0,2.07055325]
[1735627345158,0.29902,3349.1,3349.0,1.63089805]
[1735627347262,0.29901,3349.2,3349.0,2.07085521]
[1735627347558,1.198,3349.5,3349.0,2.07085521]
[1735627347559,0.29899,3349.4,3349.1,4.86315521]
[1735627347751,2.26143271,3349.6,3349.2,0.43995716]
[1735627347951,2.62008598,3349.9,3349.5,3.2078]
[1735627348147,2.32113598,3349.9,3349.6,0.87895716]
[1735627348354,2.32113598,3349.9,3349.7,42.45535521]
[1735627348554,2.62007598,3349.9,3349.8,0.43995716]
[1735627348950,2.62007598,3349.9,3349.8,1.21539805]
[1735627349363,0.35864327,3349.9,3349.8,1.21539805]
[1735627351759,0.35864327,3349.9,3349.8,1.65548872]
[1735627353453,0.35864327,3349.9,3349.8,1.65572805]
[1735627353866,0.35864327,3349.9,3349.8,1.21539805]
[1735627354161,0.35864327,3349.9,3349.8,1.65580031]
[1735627359466,0.35864327,3349.9,3349.8,1.65570083]
[1735627360757,0.05970327,3349.9,3349.8,1.65570083]
[1735627360954,0.05970327,3349.9,3349.8,1.95465083]
[1735627361157,0.05970327,3349.9,3349.8,3.03285632]
[1735627361858,3.2078,3350.3,3350.0,0.29893]
[1735627361859,0.29891,3350.3,3350.0,0.29893]
[1735627362058,0.29892,3350.2,3350.1,0.86020278]
[1735627362368,0.29891,3350.3,3350.1,2.49558894]
[1735627362563,0.29891,3350.3,3350.1,2.05549805]
[1735627362763,0.29891,3350.4,3350.2,1.65543465]
[1735627362962,3.6682,3350.7,3350.3,1.21539805]
[1735627363163,0.29891,3350.4,3350.3,1.21539805]
[1735627363363,0.29891,3350.4,3350.1,1.13902]
[1735627363569,0.29891,3350.4,3350.2,1.65487535]
[1735627363868,0.2989,3350.5,3350.3,1.21496562]
[1735627364169,3.6682,3350.7,3350.3,1.21496562]
[1735627364376,0.29889,3350.5,3350.4,1.21496562]
[1735627364571,3.6682,3350.7,3350.4,1.21496562]
[1735627364869,0.29889,3350.5,3350.1,1.13902]
[1735627365069,0.29889,3350.5,3350.2,0.43984916]
[1735627365271,0.29889,3350.5,3350.2,1.2149657]
[1735627365769,0.29888,3350.6,3350.3,1.2149657]
[1735627365959,0.2989,3350.4,3350.3,1.2149657]
[1735627367767,3.6682,3350.7,3350.3,1.2149657]
[1735627368072,0.2989,3350.4,3350.1,0.8401]
[1735627368267,0.2989,3350.4,3350.2,0.43961774]
[1735627368464,2.56033271,3350.5,3350.1,0.8401]
[1735627368671,2.56033271,3350.5,3350.2,1.65458786]
[1735627368672,2.56032271,3350.5,3350.2,1.65458786]
[1735627368970,0.29891,3350.4,3350.3,1.21496783]
[1735627369170,2.26143271,3350.5,3350.3,1.21496783]
[1735627369371,2.26143271,3350.5,3350.4,1.21496783]
[1735627369575,2.56032271,3350.5,3350.4,1.21496783]
[1735627370367,3.96708,3350.7,3350.4,1.21496783]
[1735627371075,3.96708,3350.7,3350.5,1.21496783]
[1735627371275,2.26143271,3351.1,3350.5,4.42276783]
[1735627371467,0.53801,3351.0,3350.6,1.21496783]
[1735627371772,0.67146,3351.0,3350.7,42.89893324]
[1735627372068,0.23916,3351.0,3350.8,1.65449503]
[1735627372273,0.23916,3351.0,3350.8,1.21496783]
[1735627372477,0.23916,3351.0,3350.9,1.21496783]
[1735627373570,0.23916,3351.0,3350.9,42.01496783]
[1735627373772,0.23916,3351.0,3350.9,42.44476783]
[1735627374776,0.53801,3351.0,3350.9,42.01475393]
[1735627375272,0.99321,3351.0,3350.9,42.01475393]
[1735627377273,0.23916,3351.0,3350.9,42.01475393]
[1735627377877,0.53801,3351.0,3350.9,42.01475393]
[1735627383983,0.23916,3351.0,3350.9,42.01475393]
[1735627384183,0.23916,3351.0,3350.9,42.31361393]
[1735627384386,0.53801,3351.0,3350.9,42.01475393]
[1735627384883,0.23916,3351.0,3350.9,42.01475393]
[1735627385086,0.23916,3351.0,3350.9,42.31361393]
[1735627385984,3.95465,3352.3,3351.2,0.29882]
[1735627386188,0.883,3352.2,3351.6,3.2078]
[1735627386385,0.4517,3352.2,3352.1,0.29875]
[1735627386693,0.4517,3352.2,3352.1,42.31350393]
[1735627386986,0.4517,3352.2,3352.1,41.09875]
[1735627387180,0.4313,3352.6,3352.3,0.29873]
[1735627387790,0.4313,3352.6,3352.4,0.74720121]
[1735627387986,0.73,3352.6,3352.4,1.21420196]
[1735627388192,0.4313,3352.6,3352.5,0.46700075]
[1735627388394,0.73,3352.6,3352.5,0.46700075]
[1735627388793,0.73,3352.6,3352.3,0.4475]
[1735627388992,0.4313,3352.6,3352.3,0.74622]
[1735627389187,0.4313,3352.6,3352.4,0.4670178]
[1735627389391,0.29871,3352.5,3352.4,0.4670178]
[1735627390089,0.73001,3352.6,3352.4,0.4670178]
[1735627390489,0.29871,3352.5,3352.4,0.4670178]
[1735627390794,0.29871,3352.5,3352.1,41.09874]
[1735627391294,0.29871,3352.5,3352.2,0.4670217]
[1735627391595,0.29871,3352.5,3352.3,0.4670217]
[1735627391792,0.29871,3352.5,3352.4,0.4670217]
[1735627393797,0.4313,3352.6,3352.0,3.2078]
[1735627393798,0.29875,3352.1,3352.0,3.2078]
[1735627394402,0.4313,3352.4,3352.0,3.2078]
[1735627394403,0.29874,3352.2,3352.0,3.2078]
[1735627395293,0.29874,3352.2,3352.1,0.46706943]
[1735627396296,0.71944,3352.3,3352.1,0.46706943]
[1735627396599,0.4207,3352.3,3352.0,3.2078]
[1735627396794,0.29874,3352.2,3352.0,3.2078]
[1735627396995,0.71943,3352.3,3352.0,3.2078]
[1735627397200,0.4207,3352.3,3352.0,3.50655]
[1735627397403,0.4313,3352.6,3352.1,0.4670572]
[1735627397598,0.4204,3352.6,3352.2,1.1918872]
[1735627397800,0.4204,3352.6,3352.3,0.29872]
[1735627397999,0.4204,3352.6,3352.4,0.4670572]
[1735627398505,0.4204,3352.6,3352.3,0.29872]
[1735627398902,0.4204,3352.6,3352.4,0.46702237]
[1735627399104,0.4204,3352.6,3352.4,0.29872]
[1735627399601,0.4204,3352.6,3352.2,0.878]
[1735627399602,0.4204,3352.6,3352.3,0.29873]
[1735627399795,0.4204,3352.6,3352.4,0.4670219]
[1735627399996,0.4204,3352.6,3352.4,0.7657419]
[1735627400196,0.4204,3352.6,3352.4,0.29872]
[1735627400400,0.4204,3352.6,3352.2,0.878]
[1735627400601,0.4433,3352.9,3352.5,3.2078]
[1735627400801,0.4148,3352.8,3352.6,0.46698561]
[1735627401006,0.71349,3352.8,3352.5,3.2078]
[1735627401507,0.71349,3352.8,3352.6,0.46698904]
[1735627401804,0.71349,3352.8,3352.5,3.2078]
[1735627402106,0.4148,3352.8,3352.5,3.2078]
[1735627402302,0.4148,3352.8,3352.6,0.46698907]
[1735627402707,0.4148,3352.8,3352.5,3.2078]
[1735627402907,0.74647,3354.0,3352.5,3.2078]
[1735627402908,0.29864,3353.4,3352.6,43.06143271]
[1735627403100,3.2078,3353.6,3352.6,43.06143271]
[1735627403101,0.4242,3353.6,3352.9,3.2078]
[1735627403407,0.72282,3353.6,3353.1,0.29866]
[1735627403909,0.72282,3353.6,3353.2,0.88568835]
[1735627404299,1.15509,3353.9,3353.4,0.29863]
[1735627404504,0.8565,3353.9,3353.5,0.76550835]
[1735627404705,0.8565,3353.9,3353.6,0.29861]
[1735627405007,1.15509,3353.9,3353.6,0.46688835]
[1735627405194,0.2986,3353.8,3353.7,0.46688835]
[1735627405901,5.2986,3353.8,3353.7,0.46688835]
[1735627406098,5.2986,3353.8,3353.0,3.2078]
[1735627406099,0.29866,3353.2,3353.0,3.2078]
[1735627407000,0.4588,3353.4,3353.0,3.2078]
[1735627407200,0.29866,3353.1,3353.0,3.2078]
[1735627407402,0.29865,3353.2,3353.0,3.2078]
[1735627407603,0.72854,3353.3,3353.0,3.2078]
[1735627407906,0.29865,3353.2,3353.0,3.2078]
[1735627408804,0.4299,3353.3,3353.0,3.2078]
[1735627409010,0.29866,3353.1,3353.0,3.2078]
[1735627409506,0.29866,3353.1,3353.0,4.39233495]
[1735627410004,0.29866,3353.1,3353.0,3.9548388]
[1735627410709,0.4299,3353.3,3353.0,3.9548388]
[1735627410908,0.29866,3353.1,3353.0,3.2078]
[1735627411203,0.29866,3353.2,3353.0,3.2078]
[1735627411414,0.29866,3353.1,3353.0,3.95484486]
[1735627411604,0.29866,3353.1,3353.0,3.2078]
[1735627412807,0.29866,3353.1,3352.9,3.2078]
[1735627413205,0.29865,3353.2,3352.9,3.2078]
[1735627413408,0.29866,3353.2,3353.0,40.8]
[1735627414202,0.72854,3353.3,3353.0,40.8]
[1735627414508,0.4588,3353.4,3353.0,40.8]
[1735627414908,0.75744,3353.4,3353.0,40.8]
[1735627415413,0.29864,3353.3,3353.0,40.8]
[1735627415815,0.459,3353.5,3353.0,40.8]
[1735627416106,0.459,3353.5,3353.1,0.29866]
[1735627416413,0.459,3353.5,3353.0,41.09867]
[1735627416414,0.75763,3353.5,3353.0,41.09867]
[1735627417416,0.459,3353.5,3353.0,40.8]
[1735627417608,0.29864,3353.4,3353.0,40.8]
[1735627418007,0.29864,3353.4,3353.1,0.46692641]
[1735627418209,0.459,3353.5,3353.1,0.46692641]
[1735627418514,0.459,3353.5,3353.2,0.91062641]
[1735627418913,0.75763,3353.5,3353.3,0.46692641]
[1735627419211,0.75763,3353.5,3353.2,0.4437]
[1735627419715,0.459,3353.5,3353.3,0.46692319]
[1735627419914,0.29863,3353.4,3353.3,0.46692319]
[1735627420123,0.29863,3353.4,3353.2,0.4437]
[1735627420416,0.29864,3353.4,3353.2,0.4437]
[1735627420913,0.29863,3353.4,3353.3,0.46692319]
[1735627421715,0.29866,3353.1,3352.9,44.4576]
[1735627421913,0.29867,3353.0,3352.9,44.4576]
[1735627422219,0.29867,3353.0,3352.9,1.21402895]
[1735627422408,0.2987,3352.6,3352.5,3.2078]
[1735627422614,0.2987,3352.6,3352.5,45.22196288]
[1735627423214,0.2987,3352.6,3352.5,4.42196288]
[1735627423417,5.76793271,3352.6,3352.5,1.21416288]
[1735627423621,0.29875,3352.1,3351.9,0.4512]
[1735627423821,0.29875,3352.1,3352.0,40.8]
[1735627424022,0.29875,3352.1,3352.0,42.01436472]
[1735627425025,0.29874,3352.2,3352.0,42.01436472]
[1735627425422,0.29874,3352.2,3352.1,0.46706335]
[1735627429721,0.4168,3352.4,3352.1,0.46706335]
[1735627429919,0.4168,3352.4,3351.9,0.74996]
[1735627430116,0.29874,3352.3,3351.9,0.74996]
[1735627430317,0.29874,3352.3,3352.0,0.46707653]
[1735627430524,0.29874,3352.3,3351.9,0.74996]
[1735627431021,0.29874,3352.3,3352.0,0.46707655]
[1735627431223,0.29874,3352.3,3351.9,0.74996]
[1735627431622,0.29873,3352.3,3351.9,0.74996]
[1735627431821,0.71553,3352.4,3351.9,0.74996]
[1735627432023,0.29873,3352.3,3351.9,0.74996]
[1735627432225,0.29873,3352.3,3352.0,0.46707693]
[1735627432421,0.4168,3352.4,3352.0,0.46707693]
[1735627432626,0.29873,3352.3,3351.9,0.4512]
[1735627433128,0.29875,3352.1,3352.0,0.46707707]
[1735627435127,3.2078,3352.1,3351.7,3.2078]
[1735627435427,0.29879,3351.6,3351.3,7.42260935]
[1735627435724,0.29879,3351.6,3351.5,45.95019447]
[1735627436117,0.29879,3351.6,3351.5,41.2671635]
[1735627436820,0.29879,3351.6,3351.5,40.8]
[1735627438325,0.4297,3352.0,3351.5,40.8]
[1735627438524,2.26143271,3352.4,3351.7,3.2078]
[1735627438724,3.50652,3352.5,3352.0,0.29875]
[1735627439027,0.29872,3352.5,3352.1,4.82905833]
[1735627439229,0.29872,3352.5,3352.1,4.53030833]
[1735627439430,0.29872,3352.5,3352.2,0.46710833]
[1735627439832,0.29872,3352.5,3352.1,4.0632]
[1735627439833,0.29872,3352.5,3352.3,0.46710833]
[1735627440038,0.29872,3352.5,3352.1,4.0632]